bitfinex/quotes_SOLUSD_20250604
["timestamp","ask_amount","ask_price","bid_price","bid_amount"]
[1749077004149,19.78884789,153.87,153.86,50.08]
[1749077004347,14.99881671,153.87,153.86,10.32]
[1749077004521,19.7888971,153.87,153.86,50.08]
[1749077004723,14.99881671,153.87,153.86,50.08]
[1749077005322,19.7888971,153.87,153.86,50.08]
[1749077005529,19.78896127,153.87,153.86,50.08]
[1749077005921,19.78896315,153.87,153.86,50.08]
[1749077006124,19.78896127,153.87,153.86,50.08]
[1749077006319,14.99881671,153.87,153.86,50.08]
[1749077007129,19.78883572,153.87,153.86,50.08]
[1749077007330,14.99881671,153.87,153.86,50.08]
[1749077007746,19.79333159,153.87,153.86,50.08]
[1749077007954,19.7933949,153.87,153.86,50.08]
[1749077008144,14.99881671,153.87,153.86,50.08]
[1749077008352,19.79344896,153.87,153.86,50.08]
[1749077008668,14.99881671,153.87,153.86,50.08]
[1749077008874,19.79342638,153.87,153.86,50.08]
[1749077009461,19.79338979,153.87,153.86,50.08]
[1749077009652,14.99881671,153.87,153.86,50.08]
[1749077009959,19.79285494,153.87,153.86,50.08]
[1749077010130,19.79285954,153.87,153.86,50.08]
[1749077010329,19.79289649,153.87,153.86,50.08]
[1749077010935,14.99881671,153.87,153.86,50.08]
[1749077011136,19.79292328,153.87,153.86,50.08]
[1749077011452,19.79304165,153.87,153.86,50.08]
[1749077011660,19.79315814,153.87,153.86,50.08]
[1749077011946,19.79303817,153.87,153.86,50.08]
[1749077012530,19.79340144,153.87,153.86,50.08]
[1749077013062,19.79340249,153.87,153.86,50.08]
[1749077013430,14.99881671,153.87,153.86,50.08]
[1749077013661,19.79336076,153.87,153.86,50.08]
[1749077014034,19.79336076,153.87,153.86,10.32]
[1749077014239,19.79336076,153.87,153.86,50.06]
[1749077014762,19.79307978,153.87,153.86,50.06]
[1749077015058,19.79304469,153.87,153.86,50.06]
[1749077015235,19.79306948,153.87,153.86,50.06]
[1749077015444,19.79307135,153.87,153.86,50.06]
[1749077016038,34.64972649,153.87,153.86,10.3]
[1749077016240,0.14216157,153.86,153.78,26.0]
[1749077016531,14.85665514,153.84,153.79,10.3]
[1749077017342,14.85665514,153.84,153.8,39.74]
[1749077017741,14.85665514,153.81,153.8,39.74]
[1749077020374,14.85665514,153.84,153.8,39.74]
[1749077020548,14.85665514,153.81,153.8,39.74]
[1749077026371,26.0,153.79,153.78,37.38]
[1749077026552,26.0,153.79,153.78,47.68]
[1749077026553,40.85665514,153.79,153.78,47.68]
[1749077026756,40.85665514,153.79,153.78,87.42]
[1749077026956,40.85665514,153.79,153.78,47.68]
[1749077027152,40.85665514,153.79,153.78,87.42]
[1749077030157,40.85665514,153.79,153.78,47.68]
[1749077030356,40.85665514,153.79,153.78,87.42]
[1749077030872,40.85665514,153.79,153.78,47.68]
[1749077031050,40.85665514,153.79,153.78,87.42]
[1749077031251,14.85665514,153.79,153.78,87.42]
[1749077032851,14.85665514,153.79,153.78,47.68]
[1749077033050,14.85665514,153.79,153.78,87.42]
[1749077037255,14.85665514,153.79,153.78,47.68]
[1749077037455,14.85665514,153.79,153.78,87.42]
[1749077040993,14.85665514,153.79,153.78,47.68]
[1749077041206,14.85665514,153.79,153.78,87.42]
[1749077043089,14.99881671,153.79,153.78,87.42]
[1749077043495,14.99881671,153.79,153.78,47.68]
[1749077043674,14.99881671,153.79,153.78,87.42]
[1749077044423,14.85665514,153.79,153.78,87.42]
[1749077045696,40.85665514,153.79,153.78,87.42]
[1749077046573,40.85665514,153.79,153.78,50.04]
[1749077055802,14.85665514,153.79,153.78,50.04]
[1749077057189,35.51568678,153.79,153.78,50.04]
[1749077060087,35.65784835,153.79,153.78,50.04]
[1749077062203,9.51568678,153.79,153.78,50.04]
[1749077079945,9.65784835,153.79,153.78,50.04]
[1749077080229,14.44928529,153.79,153.78,10.3]
[1749077080421,14.44928529,153.79,153.78,50.04]
[1749077080422,14.44926959,153.79,153.78,50.04]
[1749077080622,9.65784835,153.79,153.78,50.04]
[1749077081000,14.44917487,153.79,153.78,50.04]
[1749077081610,148.1,153.82,153.78,50.04]
[1749077081803,9.51568678,153.79,153.78,50.04]
[1749077084430,9.51568678,153.8,153.78,50.04]
[1749077085225,3.38361146,153.87,153.79,18.64964886]
[1749077085427,9.51568678,153.82,153.8,39.72]
[1749077086533,9.51568678,153.83,153.8,39.72]
[1749077087211,9.51568678,153.82,153.8,39.72]
[1749077090956,9.51568678,153.84,153.81,18.64964886]
[1749077091825,9.51568678,153.85,153.81,18.64964886]
[1749077092445,9.51568678,153.85,153.81,28.16533564]
[1749077093032,148.1,153.88,153.81,28.16533564]
[1749077093237,14.84556549,153.86,153.82,14.84556549]
[1749077093430,14.84556549,153.86,153.83,50.0]
[1749077094463,148.1,153.88,153.83,50.0]
[1749077094637,14.84556549,153.86,153.83,50.0]
[1749077098739,14.84556549,153.86,153.84,37.38]
[1749077099644,14.84556549,153.85,153.84,37.38]
[1749077100225,14.84556549,153.85,153.84,77.08]
[1749077100630,14.84556549,153.85,153.84,37.38]
[1749077100929,14.84556549,153.85,153.84,77.08]
[1749077101326,14.84556549,153.85,153.84,37.38]
[1749077101653,14.98772706,153.85,153.84,37.38]
[1749077101844,0.14216157,153.84,153.77,37.38]
[1749077102021,0.14216157,153.84,153.78,10.28]
[1749077102022,0.14216157,153.81,153.78,10.28]
[1749077102341,14.84556549,153.79,153.73,1.612]
[1749077102534,26.0,153.82,153.74,49.98]
[1749077102535,14.84556549,153.75,153.74,49.98]
[1749077102854,14.84556549,153.75,153.74,10.28]
[1749077103152,14.84556549,153.75,153.74,49.98]
[1749077104224,14.84556549,153.75,153.74,10.28]
[1749077104443,14.84556549,153.75,153.74,49.98]
[1749077106749,14.84556549,153.75,153.74,10.28]
[1749077106942,14.84556549,153.75,153.74,49.98]
[1749077109246,14.84556549,153.75,153.74,10.28]
[1749077109445,14.84556549,153.75,153.74,49.98]
[1749077109963,14.84556549,153.75,153.74,10.28]
[1749077110260,14.84556549,153.75,153.74,49.98]
[1749077113030,14.98772706,153.75,153.74,10.28]
[1749077113365,14.98772706,153.75,153.66,18.64964886]
[1749077113541,14.84556549,153.67,153.66,18.64964886]
[1749077114050,14.84556549,153.67,153.66,66.32964886]
[1749077114436,14.84556549,153.67,153.66,106.04964886]
[1749077114837,0.14216157,153.74,153.66,106.04964886]
[1749077115164,14.84556549,153.67,153.66,66.32964886]
[1749077115347,14.84556549,153.67,153.66,106.04964886]
[1749077115659,14.84556549,153.68,153.66,106.04964886]
[1749077116459,14.84556549,153.68,153.67,39.72]
[1749077117670,14.84556549,153.68,153.66,47.68]
[1749077117884,0.28432314,153.74,153.67,39.72]
[1749077118164,14.84556549,153.68,153.67,39.72]
[1749077126360,14.84556549,153.69,153.67,39.72]
[1749077127374,149.7217,153.75,153.67,39.72]
[1749077127677,14.84556549,153.7,153.67,39.72]
[1749077128049,14.84556549,153.69,153.67,39.72]
[1749077130158,14.84556549,153.7,153.67,39.72]
[1749077130978,14.84556549,153.69,153.67,39.72]
[1749077133156,14.84556549,153.69,153.66,47.68]
[1749077133355,14.84556549,153.67,153.66,47.68]
[1749077133557,14.84556549,153.67,153.66,87.4]
[1749077134158,14.84556549,153.67,153.66,47.68]
[1749077134360,14.84556549,153.67,153.66,87.4]
[1749077134974,14.84556549,153.67,153.66,47.68]
[1749077135294,14.84556549,153.67,153.66,87.4]
[1749077136374,14.84556549,153.67,153.66,47.68]
[1749077136581,14.84556549,153.67,153.66,87.4]
[1749077141776,14.84556549,153.67,153.66,47.68]
[1749077141999,14.84556549,153.67,153.66,87.4]
[1749077142868,14.84556549,153.67,153.66,50.0]
[1749077152581,14.98772706,153.67,153.66,50.0]
[1749077153491,148.1,153.69,153.66,50.0]
[1749077153683,14.84556549,153.67,153.66,50.0]
[1749077157600,148.1,153.69,153.66,50.0]
[1749077157778,14.84556549,153.67,153.66,50.0]
[1749077160594,40.84556549,153.67,153.66,50.0]
[1749077161584,14.98772706,153.67,153.66,50.0]
[1749077161801,14.98772706,153.67,153.58,1.5012]
[1749077161802,26.0,153.65,153.58,1.5012]
[1749077161993,14.84556549,153.59,153.58,1.5012]
[1749077162302,14.84556549,153.59,153.54,8.1418]
[1749077162501,14.84556549,153.55,153.54,8.1418]
[1749077162708,14.84556549,153.55,153.54,26.79144886]
[1749077163004,14.84556549,153.55,153.54,8.1418]
[1749077163309,14.84556549,153.55,153.54,41.2212]
[1749077163478,14.84556549,153.55,153.51,6.0128]
[1749077163677,14.84556549,153.52,153.51,6.0128]
[1749077163894,14.84556549,153.52,153.48,7.43533073]
[1749077164179,14.84556549,153.52,153.47,43.9792]
[1749077164180,14.84556549,153.49,153.47,43.9792]
[1749077164383,14.84556549,153.52,153.48,50.0]
[1749077164598,14.84556549,153.49,153.48,50.0]
[1749077165687,14.84556549,153.49,153.48,10.28]
[1749077165887,14.84556549,153.49,153.48,50.0]
[1749077166212,14.84556549,153.49,153.48,10.28]
[1749077166435,14.84556549,153.49,153.48,50.02]
[1749077167083,26.0,153.55,153.48,50.02]
[1749077167282,14.84556549,153.5,153.48,50.02]
[1749077167497,14.84556549,153.49,153.48,50.02]
[1749077168295,26.0,153.55,153.48,50.02]
[1749077168296,14.84556549,153.5,153.48,50.02]
[1749077168901,14.84556549,153.49,153.48,50.02]
[1749077170305,14.84556549,153.49,153.48,10.28]
[1749077170503,14.84556549,153.49,153.48,50.02]
[1749077173010,14.84556549,153.49,153.48,10.28]
[1749077173209,14.84556549,153.49,153.48,50.02]
[1749077175925,15.12988863,153.49,153.48,10.28]
[1749077176127,15.12988863,153.49,153.48,50.04]
[1749077176633,14.84556549,153.49,153.48,50.04]
[1749077181510,14.98772706,153.49,153.48,10.28]
[1749077181716,14.98772706,153.49,153.48,50.04]
[1749077181914,18.37456049,153.49,153.48,50.04]
[1749077183005,0.14216157,153.48,153.4,27.5907]
[1749077183204,26.0,153.47,153.41,10.28]
[1749077183435,14.84556549,153.42,153.41,10.28]
[1749077183626,14.84556549,153.42,153.41,50.04]
[1749077185703,26.0,153.46,153.41,50.04]
[1749077186026,14.84556549,153.44,153.41,50.04]
[1749077186225,14.84556549,153.42,153.41,50.04]
[1749077187932,14.84556549,153.43,153.41,50.04]
[1749077188620,14.84556549,153.42,153.41,50.04]
[1749077191240,26.0,153.45,153.41,50.04]
[1749077191440,14.84556549,153.42,153.41,10.28]
[1749077191636,14.84556549,153.42,153.41,50.04]
[1749077194971,14.84556549,153.43,153.41,50.04]
[1749077195360,14.84556549,153.42,153.41,50.04]
[1749077201068,14.84556549,153.43,153.41,50.04]
[1749077201578,14.84556549,153.42,153.41,10.28]
[1749077201872,14.84556549,153.42,153.41,50.06]
[1749077202249,14.84556549,153.43,153.41,50.06]
[1749077207285,14.84556549,153.44,153.41,50.06]
[1749077207499,14.84556549,153.45,153.41,50.06]
[1749077208195,174.1,153.49,153.42,35.06851435]
[1749077208367,174.1,153.49,153.42,20.22294886]
[1749077208368,14.84556549,153.46,153.42,20.22294886]
[1749077209193,14.84556549,153.45,153.42,20.22294886]
[1749077211478,31.02033174,153.51,153.42,20.22294886]
[1749077211692,14.84556549,153.46,153.42,20.22294886]
[1749077212196,14.84556549,153.46,153.42,35.06851435]
[1749077213177,14.84556549,153.45,153.42,20.22294886]
[1749077213772,14.84556549,153.46,153.42,35.06851435]
[1749077216403,14.84556549,153.47,153.42,35.06851435]
[1749077216774,14.84556549,153.45,153.42,20.22294886]
[1749077217175,14.34556549,153.46,153.42,20.22294886]
[1749077218582,14.34556549,153.46,153.42,35.06851435]
[1749077219277,14.34556549,153.46,153.43,37.46]
[1749077220802,31.02033174,153.51,153.43,37.46]
[1749077220803,14.84556549,153.47,153.43,52.30556549]
[1749077221896,14.84556549,153.47,153.43,37.46]
[1749077223523,14.84556549,153.46,153.43,37.46]
[1749077228298,180.6421,153.53,153.44,33.49521435]
[1749077228520,14.84556549,153.47,153.45,39.76]
[1749077228717,14.84556549,153.52,153.46,10.28]
[1749077228932,14.84556549,153.47,153.46,10.28]
[1749077229941,154.6421,153.53,153.46,10.28]
[1749077230106,1.6558,153.54,153.47,18.64964886]
[1749077230107,14.84556549,153.5,153.47,18.64964886]
[1749077230450,14.84556549,153.48,153.46,10.28]
[1749077230647,14.84556549,153.52,153.46,10.28]
[1749077230648,14.84556549,153.47,153.46,10.28]
[1749077230849,14.84556549,153.47,153.46,50.04]
[1749077233038,14.84556549,153.47,153.46,10.28]
[1749077233709,14.84556549,153.47,153.46,50.04]
[1749077233908,14.84556549,153.47,153.46,10.28]
[1749077234210,14.84556549,153.47,153.46,50.04]
[1749077239251,14.84556549,153.47,153.46,10.28]
[1749077239555,14.84556549,153.47,153.46,50.04]
[1749077240520,27.5422,153.49,153.46,50.04]
[1749077240719,14.84556549,153.47,153.46,50.04]
[1749077251259,14.98772706,153.47,153.46,10.28]
[1749077251468,26.0,153.44,153.37,6.15956157]
[1749077251643,26.0,153.43,153.38,10.28]
[1749077251831,14.84556549,153.39,153.38,10.28]
[1749077252527,14.84556549,153.39,153.38,50.04]
[1749077253452,1.6579,153.42,153.38,50.04]
[1749077253641,14.84556549,153.39,153.38,10.28]
[1749077253844,14.84556549,153.39,153.38,50.04]
[1749077254852,14.84556549,153.41,153.38,50.04]
[1749077255240,14.84556549,153.4,153.38,50.04]
[1749077255664,6.38301583,153.46,153.38,50.04]
[1749077255665,14.84556549,153.42,153.39,18.79181043]
[1749077256162,14.84556549,153.41,153.39,18.79181043]
[1749077256956,14.84556549,153.42,153.39,18.79181043]
[1749077258434,14.84556549,153.41,153.39,18.79181043]
[1749077259438,14.84556549,153.42,153.39,18.79181043]
[1749077263454,14.84556549,153.41,153.39,18.64964886]
[1749077264553,14.84556549,153.42,153.39,18.64964886]
[1749077265165,14.84556549,153.42,153.4,39.76]
[1749077267370,148.1,153.47,153.4,39.76]
[1749077267675,14.84556549,153.44,153.41,18.64964886]
[1749077269649,14.84556549,153.44,153.43,26.0]
[1749077269849,14.84556549,153.44,153.43,36.28]
[1749077271167,14.84556549,153.44,153.43,10.28]
[1749077271379,29.69113098,153.44,153.43,10.28]
[1749077271689,29.69113098,153.44,153.43,50.04]
[1749077272195,29.69113098,153.44,153.43,10.28]
[1749077272354,29.69113098,153.44,153.43,50.04]
[1749077272765,29.69113098,153.44,153.43,10.28]
[1749077273084,29.69113098,153.44,153.43,50.04]
[1749077273467,14.84556549,153.44,153.43,50.04]
[1749077279291,29.69113098,153.44,153.43,10.28]
[1749077279468,29.69113098,153.44,153.43,50.04]
[1749077280289,14.84556549,153.44,153.43,50.04]
[1749077281887,61.15418092,153.5,153.43,50.04]
[1749077281888,34.63927058,153.5,153.43,50.04]
[1749077282083,4.76965029,153.49,153.43,50.04]
[1749077282288,14.84556549,153.44,153.43,50.04]
[1749077289082,4.76935802,153.49,153.43,50.04]
[1749077289283,14.84556549,153.46,153.43,50.04]
[1749077290003,177.4887992,153.51,153.45,0.28432314]
[1749077290004,14.84556549,153.48,153.45,0.28432314]
[1749077290175,14.84556549,153.49,153.46,18.64964886]
[1749077290379,14.84556549,153.49,153.45,15.12988863]
[1749077290380,14.84556549,153.49,153.47,39.76]
[1749077290573,14.84556549,153.49,153.48,10.28]
[1749077290999,14.84556549,153.5,153.48,50.04]
[1749077291177,14.84556549,153.49,153.48,50.04]
[1749077291875,14.84556549,153.5,153.48,50.04]
[1749077293801,14.84556549,153.49,153.48,50.04]
[1749077294687,1.5585,153.54,153.48,50.04]
[1749077294688,14.84556549,153.5,153.48,50.04]
[1749077296485,14.84556549,153.5,153.49,18.64964886]
[1749077296703,14.84556549,153.51,153.49,18.64964886]
[1749077297290,14.84556549,153.51,153.49,56.10964886]
[1749077302101,14.84556549,153.5,153.49,56.10964886]
[1749077307386,14.84556549,153.51,153.49,37.46]
[1749077307585,14.84556549,153.5,153.49,37.46]
[1749077307808,14.84556549,153.5,153.49,77.2]
[1749077311597,14.84556549,153.5,153.49,37.46]
[1749077311800,14.84556549,153.5,153.48,10.28]
[1749077312018,14.98772706,153.49,153.41,26.0]
[1749077312198,0.14216157,153.49,153.42,50.0]
[1749077312398,14.84556549,153.43,153.42,50.0]
[1749077313012,14.84556549,153.43,153.42,10.26]
[1749077313199,14.84556549,153.43,153.42,50.0]
[1749077313399,14.84556549,153.45,153.43,18.64964886]
[1749077314014,14.84556549,153.44,153.43,56.10964886]
[1749077315406,14.84556549,153.45,153.43,56.10964886]
[1749077315900,14.84556549,153.44,153.43,56.10964886]
[1749077325409,0.14216157,153.51,153.43,56.10964886]
[1749077325410,14.84556549,153.45,153.43,56.10964886]
[1749077326243,14.84556549,153.47,153.43,56.10964886]
[1749077326430,188.94556549,153.52,153.43,70.95521435]
[1749077326615,14.84556549,153.47,153.43,70.95521435]
[1749077327112,14.84556549,153.48,153.43,96.95521435]
[1749077328541,14.84556549,153.48,153.44,0.28432314]
[1749077328749,14.84556549,153.48,153.45,18.64964886]
[1749077328929,14.84556549,153.48,153.46,39.74]
[1749077329241,14.84556549,153.48,153.47,10.28]
[1749077332448,188.94556549,153.52,153.47,10.28]
[1749077332630,14.84556549,153.48,153.47,10.28]
[1749077337131,14.84556549,153.48,153.47,47.74]
[1749077341258,14.84556549,153.48,153.47,87.48]
[1749077341837,192.33329888,153.52,153.47,87.48]
[1749077341838,177.48773339,153.52,153.47,50.02]
[1749077342055,14.84556549,153.49,153.47,50.02]
[1749077342230,14.84556549,153.48,153.47,50.02]
[1749077343634,188.94556549,153.52,153.47,50.02]
[1749077343966,14.84556549,153.49,153.47,50.02]
[1749077345850,14.84556549,153.5,153.48,18.64964886]
[1749077348140,14.84556549,153.49,153.48,18.64964886]
[1749077348946,14.84556549,153.49,153.47,50.02]
[1749077350137,1.549,153.53,153.47,10.28]
[1749077350138,14.84556549,153.48,153.47,10.28]
[1749077350352,14.84556549,153.48,153.47,50.0]
[1749077351937,14.84556549,153.49,153.47,50.0]
[1749077352767,14.84556549,153.49,153.47,87.46]
[1749077356565,14.84556549,153.48,153.47,106.10964886]
[1749077357264,14.84556549,153.48,153.47,87.46]
[1749077360380,14.84556549,153.48,153.47,47.74]
[1749077360741,19.62523067,153.48,153.47,47.74]
[1749077361075,19.62523067,153.48,153.4,0.14216157]
[1749077361076,23.16606549,153.48,153.4,0.14216157]
[1749077361255,8.3205,153.48,153.41,39.72]
[1749077361462,14.84556549,153.42,153.41,58.36964886]
[1749077362961,14.84556549,153.44,153.41,58.36964886]
[1749077364168,1.6611,153.48,153.41,58.36964886]
[1749077364169,14.84556549,153.45,153.43,18.64964886]
[1749077364373,1.6611,153.48,153.44,39.72]
[1749077364547,14.84556549,153.45,153.44,39.72]
[1749077367375,14.84556549,153.45,153.44,49.98]
[1749077376760,14.84556549,153.45,153.44,10.26]
[1749077376961,14.84556549,153.45,153.44,49.98]
[1749077378275,148.1,153.5,153.44,49.98]
[1749077378474,14.84556549,153.45,153.44,49.98]
[1749077382911,1.6215,153.52,153.45,44.79181043]
[1749077383083,14.84556549,153.49,153.46,0.14216157]
[1749077383400,1.6215,153.52,153.44,17.69533073]
[1749077383401,14.84556549,153.47,153.44,17.69533073]
[1749077383600,14.84556549,153.45,153.44,10.26]
[1749077383768,14.84556549,153.45,153.44,49.98]
[1749077388465,14.84556549,153.45,153.44,10.26]
[1749077388671,14.84556549,153.45,153.44,49.98]
[1749077395687,26.0,153.43,153.42,37.46]
[1749077395882,14.84556549,153.43,153.42,87.44]
[1749077396080,14.84556549,153.43,153.42,47.72]
[1749077396286,14.84556549,153.43,153.42,87.44]
[1749077396820,14.84556549,153.43,153.42,47.72]
[1749077396979,14.84556549,153.43,153.42,87.44]
[1749077397698,14.84556549,153.43,153.42,47.72]
[1749077398097,14.84556549,153.43,153.42,87.44]
[1749077398299,40.84556549,153.43,153.42,47.72]
[1749077398572,19.76753576,153.43,153.42,87.44]
[1749077398783,14.98772706,153.43,153.42,87.44]
[1749077399388,40.98772706,153.43,153.42,87.44]
[1749077400921,40.84556549,153.43,153.42,87.44]
[1749077402781,26.0,153.43,153.42,87.44]
[1749077402985,40.84556549,153.43,153.42,87.44]
[1749077407685,40.98772706,153.43,153.42,87.44]
[1749077409507,40.84556549,153.43,153.42,49.98]
[1749077409890,14.84556549,153.43,153.42,49.98]
[1749077411101,29.38728038,153.45,153.42,49.98]
[1749077411416,14.84556549,153.43,153.42,49.98]
[1749077412296,29.38728038,153.45,153.42,49.98]
[1749077412504,14.84556549,153.43,153.42,49.98]
[1749077417210,14.98772706,153.43,153.42,49.98]
[1749077418314,14.98772706,153.43,153.42,10.26]
[1749077418315,15.12988863,153.43,153.42,10.26]
[1749077418519,15.12988863,153.43,153.36,37.48]
[1749077418520,26.0,153.4,153.39,10.26]
[1749077418742,0.28432314,153.39,153.29,1.5895]
[1749077418904,14.84556549,153.3,153.28,0.14216157]
[1749077419102,14.84556549,153.29,153.26,6.4453]
[1749077419416,14.84556549,153.27,153.25,1.5895]
[1749077419615,14.84556549,153.26,153.25,1.5895]
[1749077419810,14.84556549,153.26,153.25,41.3095]
[1749077420129,14.84556549,153.27,153.25,41.3095]
[1749077420305,14.84556549,153.27,153.26,39.72]
[1749077420825,14.84556549,153.27,153.22,32.67244116]
[1749077421012,14.84556549,153.25,153.23,39.74]
[1749077421209,26.0,153.31,153.23,39.74]
[1749077421210,14.84556549,153.24,153.23,39.74]
[1749077421806,14.84556549,153.24,153.22,6.4453]
[1749077422006,14.84556549,153.28,153.23,39.74]
[1749077422597,14.84556549,153.28,153.24,39.74]
[1749077423229,14.84556549,153.25,153.24,39.74]
[1749077423713,14.84556549,153.25,153.21,1.5895]
[1749077423916,14.84556549,153.23,153.22,39.74]
[1749077424116,14.84556549,153.23,153.22,50.0]
[1749077426115,14.84556549,153.28,153.22,50.0]
[1749077426326,14.84556549,153.23,153.22,50.0]
[1749077426819,26.0,153.29,153.22,50.0]
[1749077427642,14.84556549,153.24,153.22,50.0]
[1749077428435,14.84556549,153.23,153.22,50.0]
[1749077430231,14.84556549,153.23,153.22,50.02]
[1749077431766,14.84556549,153.24,153.22,50.02]
[1749077432361,14.84556549,153.23,153.22,50.02]
[1749077433229,14.84556549,153.23,153.22,10.26]
[1749077433428,14.84556549,153.23,153.22,50.02]
[1749077438046,14.84556549,153.26,153.23,36.26]
[1749077438444,3.38635479,153.31,153.25,26.0]
[1749077438652,14.84556549,153.28,153.26,39.76]
[1749077438960,14.84556549,153.27,153.26,39.76]
[1749077443248,14.84556549,153.27,153.26,10.26]
[1749077443562,14.84556549,153.27,153.26,50.02]
[1749077444651,1.6642,153.32,153.26,50.02]
[1749077444835,14.84556549,153.27,153.26,50.02]
[1749077447239,14.84556549,153.27,153.26,10.26]
[1749077447577,14.84556549,153.27,153.26,50.02]
[1749077450958,0.14216157,153.31,153.26,50.02]
[1749077451165,14.84556549,153.27,153.26,50.02]
[1749077452563,14.84556549,153.27,153.26,10.26]
[1749077452748,14.84556549,153.27,153.26,50.02]
[1749077453152,0.14216157,153.26,153.18,6.4453]
[1749077453376,1.80806157,153.26,153.19,10.26]
[1749077453540,29.69113098,153.2,153.19,10.26]
[1749077453752,29.69113098,153.2,153.19,50.04]
[1749077455390,29.83329255,153.2,153.19,50.04]
[1749077456172,29.69113098,153.2,153.19,50.04]
[1749077456778,29.83329255,153.2,153.19,50.04]
[1749077457447,29.69113098,153.2,153.19,50.04]
[1749077458082,29.83329255,153.2,153.19,50.04]
[1749077459663,29.83329255,153.2,153.19,50.06]
[1749077460381,14.84556549,153.2,153.19,50.06]
[1749077461173,29.69113098,153.2,153.19,50.06]
[1749077461575,14.84556549,153.2,153.19,50.06]
[1749077463197,3.38719767,153.24,153.19,50.06]
[1749077463480,14.84556549,153.2,153.19,50.06]
[1749077464264,3.38719767,153.24,153.19,50.06]
[1749077464265,14.84556549,153.21,153.19,50.06]
[1749077464763,14.84556549,153.2,153.19,50.06]
[1749077468975,14.84556549,153.21,153.19,50.06]
[1749077469363,148.1,153.27,153.19,50.06]
[1749077469670,14.98772706,153.28,153.2,18.933972]
[1749077469671,14.84556549,153.24,153.2,18.933972]
[1749077471351,0.14216157,153.29,153.2,33.77953749]
[1749077471576,14.84556549,153.25,153.2,59.77953749]
[1749077471783,14.84556549,153.24,153.2,59.77953749]
[1749077473483,14.84556549,153.25,153.22,18.933972]
[1749077473671,14.84556549,153.25,153.23,39.8]
[1749077473875,14.84556549,153.25,153.24,10.28]
[1749077479467,4.92018771,153.3,153.24,10.28]
[1749077479671,14.84556549,153.25,153.24,10.28]
[1749077480102,174.1,153.31,153.24,10.28]
[1749077480391,14.84556549,153.26,153.24,10.28]
[1749077482496,14.84556549,153.25,153.24,10.28]
[1749077482676,174.1,153.31,153.24,10.28]
[1749077482876,14.84556549,153.25,153.24,10.28]
[1749077484294,174.1,153.31,153.24,10.28]
[1749077484477,14.84556549,153.25,153.24,10.28]
[1749077487077,14.84556549,153.26,153.24,10.28]
[1749077488785,174.1,153.31,153.24,10.28]
[1749077488993,14.84556549,153.26,153.24,10.28]
[1749077490777,14.84556549,153.28,153.24,25.12556549]
[1749077490972,14.84556549,153.26,153.24,10.28]
[1749077491400,14.84556549,153.26,153.25,37.52]
[1749077497416,4.8070508,153.31,153.25,37.52]
[1749077497700,14.84556549,153.26,153.25,37.52]
[1749077502893,26.0,153.32,153.25,37.52]
[1749077503096,14.84556549,153.26,153.25,37.52]
[1749077503292,26.0,153.32,153.25,37.52]
[1749077503488,14.84556549,153.27,153.25,37.52]
[1749077504603,14.84556549,153.26,153.25,37.52]
[1749077506100,14.84556549,153.27,153.25,37.52]
[1749077507122,14.84556549,153.26,153.25,37.52]
[1749077510290,26.0,153.32,153.25,56.453972]
[1749077510492,26.0,153.32,153.26,10.26]
[1749077510493,14.84556549,153.27,153.26,10.26]
[1749077510693,14.84556549,153.27,153.26,50.02]
[1749077516398,4.80921668,153.31,153.26,50.02]
[1749077516694,14.84556549,153.27,153.26,10.26]
[1749077516900,14.84556549,153.27,153.26,50.02]
[1749077520004,26.0,153.32,153.26,50.02]
[1749077520005,14.84556549,153.28,153.26,50.02]